fUSD/lending_fUSD_20260401
["ID","MTS","AMOUNT","RATE_DAILY","PERIOD"]
[419182647,1775010642394,-500.0,0.00014982,2]
[419182648,1775010642404,-300.0,0.00015,2]
[419182649,1775010642413,-500.0,0.00015,7]
[419182650,1775010642423,-500.0,0.00015,7]
[419182651,1775010642432,-500.0,0.00015,7]
[419182652,1775010642442,-500.0,0.00015,7]
[419182655,1775010642451,-160.0,0.00015028,2]
[419182657,1775010642460,-160.0,0.00015028,2]
[419182659,1775010642469,-217.73408705,0.00015095,2]
[419182660,1775010642477,-419.50304534,0.00015095,2]
[419182661,1775010642486,-785.2,0.00015144,2]
[419182662,1775010642496,-3082.2118754,0.000152,2]
[419182663,1775010642505,-10000.0,0.00015205,2]
[419182664,1775010642515,-318.7126,0.000153,17]
[419182665,1775010642525,-175.69,0.0001531,2]
[419182666,1775010642534,-4154.72,0.0001531,2]
[419182667,1775010642544,-8458.19,0.0001531,2]
[419182668,1775010642552,-9999.99,0.0001531,2]
[419182669,1775010642562,-150.99,0.0001531,2]
[419182670,1775010642572,-999.99,0.0001531,2]
[419182671,1775010642582,-499.99,0.0001531,2]
[419182672,1775010642592,-1563.07,0.0001531,2]
[419182673,1775010642601,-9999.99,0.0001531,2]
[419182674,1775010642612,-4999.99,0.0001531,2]
[419182675,1775010642622,-517.93,0.0001531,2]
[419182676,1775010642631,-299.99,0.0001531,2]
[419182677,1775010642640,-1210.26,0.0001531,2]
[419182678,1775010642651,-22661.77550282,0.0001533,2]
[419182679,1775010642660,-502.25066653,0.00015342,2]
[419182680,1775010642669,-785.2,0.00015418,2]
[419182681,1775010642678,-491.60130252,0.00015433,2]
[419182682,1775010642687,-818.42067035,0.00015433,2]
[419182683,1775010642696,-3178.66,0.00015507,2]
[419182684,1775010642705,-504.0,0.00015684,4]
[419182685,1775010642716,-889.17,0.00015692,2]
[419182686,1775010642726,-212.441432,0.00015753,2]
[419182687,1775010642734,-574.0,0.00015781,2]
[419182688,1775010642745,-1000.0,0.00015781,2]
[419182689,1775010642754,-1000.0,0.00015781,2]
[419182690,1775010642763,-1000.0,0.00015781,2]
[419182691,1775010642773,-1000.0,0.00015781,2]
[419182692,1775010642783,-1000.0,0.00015781,2]
[419182693,1775010642792,-1000.0,0.00015781,2]
[419182694,1775010642801,-1000.0,0.00015781,2]
[419182695,1775010642811,-838.11,0.00015781,2]
[419182696,1775010642820,-1000.0,0.00015781,2]
[419182697,1775010642829,-10000.0,0.000158,2]
[419182698,1775010642839,-612.14,0.000158,2]
[419182699,1775010642848,-159.23,0.000158,2]
[419182700,1775010642857,-500.0,0.0001589,2]
[419182701,1775010642868,-500.0,0.0001589,2]
[419182702,1775010642878,-500.0,0.0001589,2]
[419182703,1775010642887,-518.60923739,0.0001589,2]
[419182704,1775010642895,-2000.0,0.0001589,2]
[419182705,1775010642904,-3178.66,0.00015895,2]
[419182706,1775010642913,-500.0,0.00015899,2]
[419182707,1775010642922,-638.52493971,0.000159,2]
[419182708,1775010642931,-22661.77550282,0.000159,2]
[419182709,1775010642940,-393.35,0.00015909,2]
[419182710,1775010642949,-500.0,0.0001597,2]
[419182711,1775010642958,-1000.0,0.0001597,2]
[419182712,1775010642967,-762.87386502,0.0001597,2]
[419182713,1775010642977,-1188.51483974,0.0001597,2]
[419182714,1775010642986,-445.36727502,0.0001597,2]
[419182715,1775010642995,-202.19275728,0.00015984,2]
[419182716,1775010643004,-662.92795988,0.0001599,2]
[419182717,1775010643014,-151.0,0.00015997,2]
[419182718,1775010643023,-666.0,0.00015998,2]
[419182720,1775010643033,-694.43072499,0.00015999,2]
[419182722,1775010643042,-666.0,0.00015999,2]
[419182724,1775010643054,-627105.6035058,0.00015999,2]
[419182725,1775010643063,-5408.5350479,0.00015999,2]
[419182727,1775010643073,-151.0,0.00015999,2]
[419182729,1775010643082,-151.0,0.00015999,2]
[419182731,1775010643091,-151.0,0.00015999,2]
[419182733,1775010643100,-151.0,0.00015999,2]
[419182735,1775010643110,-485.224635,0.00015999,2]
[419182737,1775010643119,-1313.53875,0.00015999,2]
[419182739,1775010643128,-151.0,0.00015999,2]
[419182741,1775010643138,-163.226364,0.00015999,2]
[419182743,1775010643147,-485.224635,0.00015999,2]
[419182745,1775010643156,-1313.53875,0.00015999,2]
[419182747,1775010643166,-485.224635,0.00015999,2]
[419182749,1775010643176,-1313.53875,0.00015999,2]
[419182751,1775010643187,-2502.821982,0.00015999,2]
[419182753,1775010643196,-485.224635,0.00015999,2]
[419182755,1775010643206,-2502.821982,0.00015999,2]
[419182757,1775010643216,-1313.53875,0.00015999,2]
[419182758,1775010643226,-661844.97884318,0.00016,2]
[419182760,1775010643236,-385303.81437717,0.00016,2]
[419182762,1775010643245,-308.0,0.00016,2]
[419182765,1775010643256,-1133.59,0.00016,2]
[419182768,1775010643267,-200.0,0.00016,2]
[419182772,1775010643277,-151.0,0.00016,2]
[419182774,1775010643288,-151.0,0.00016,2]
[419182777,1775010643297,-151.0,0.00016,2]
[419182780,1775010643307,-151.0,0.00016,2]
[419182783,1775010643317,-151.0,0.00016,2]
[419182785,1775010643327,-151.0,0.00016,2]
[419182787,1775010643336,-195.479303,0.00016,2]
[419182788,1775010643346,-167.533581,0.00016,2]
[419182789,1775010643357,-167.533581,0.00016,2]
[419182790,1775010643367,-167.533581,0.00016,2]
[419182791,1775010643376,-296.139157,0.00016,2]
[419182792,1775010643386,-167.533581,0.00016,2]
[419182793,1775010643396,-296.139157,0.00016,2]
[419182794,1775010643405,-151.0,0.00016,2]
[419182795,1775010643415,-296.139157,0.00016,2]
[419182796,1775010643426,-296.139157,0.00016,2]
[419182797,1775010643436,-151.0,0.00016,2]
[419182798,1775010643446,-151.0,0.00016,2]
[419182799,1775010643455,-151.0,0.00016,2]
[419182800,1775010643465,-151.0,0.00016,2]
[419182801,1775010643475,-151.0,0.00016,2]
[419182802,1775010643484,-151.0,0.00016,2]
[419182803,1775010643493,-171.108772,0.00016,2]
[419182804,1775010643503,-171.108772,0.00016,2]
[419182805,1775010643513,-151.0,0.00016,2]
[419182806,1775010643524,-178.312831,0.00016,2]
[419182807,1775010643535,-171.108772,0.00016,2]
[419182808,1775010643544,-151.0,0.00016,2]
[419182809,1775010643554,-178.312831,0.00016,2]
[419182810,1775010643563,-171.108772,0.00016,2]
[419182811,1775010643573,-151.0,0.00016,2]
[419182812,1775010643582,-178.312831,0.00016,2]
[419182813,1775010643591,-178.312831,0.00016,2]
[419182814,1775010643601,-421.938934,0.00016,2]
[419182815,1775010643611,-421.938934,0.00016,2]
[419182816,1775010643621,-421.938934,0.00016,2]
[419182817,1775010643630,-421.938934,0.00016,2]
[419182818,1775010643640,-234.891227,0.00016,2]
[419182819,1775010643650,-234.891227,0.00016,2]
[419182820,1775010643660,-234.891227,0.00016,2]
[419182821,1775010643670,-234.891227,0.00016,2]
[419182822,1775010643679,-200.0,0.00016,2]
[419182823,1775010643688,-483.089048,0.00016,2]
[419182824,1775010643697,-483.089048,0.00016,2]
[419182825,1775010643706,-483.089048,0.00016,2]
[419182826,1775010643715,-151.0,0.00016,2]
[419182827,1775010643726,-483.089048,0.00016,2]
[419182828,1775010643735,-151.0,0.00016,2]
[419182829,1775010643746,-151.0,0.00016,2]
[419182830,1775010643755,-151.0,0.00016,2]
[419182831,1775010643765,-151.0,0.00016,2]
[419182832,1775010643775,-163.965869,0.00016,2]
[419182833,1775010643785,-151.0,0.00016,2]
[419182834,1775010643794,-163.965869,0.00016,2]
[419182835,1775010643804,-316.209546,0.00016,2]
[419182836,1775010643814,-163.965869,0.00016,2]
[419182837,1775010643823,-316.209546,0.00016,2]
[419182838,1775010643833,-163.965869,0.00016,2]
[419182839,1775010643842,-151.0,0.00016,2]
[419182840,1775010643852,-316.209546,0.00016,2]
[419182841,1775010643862,-151.0,0.00016,2]
[419182842,1775010643872,-316.209546,0.00016,2]
[419182843,1775010643881,-372.802333,0.00016,2]
[419182844,1775010643891,-151.0,0.00016,2]
[419182845,1775010643900,-151.0,0.00016,2]
[419182846,1775010643910,-372.802333,0.00016,2]
[419182847,1775010643920,-151.0,0.00016,2]
[419182848,1775010643930,-225.821895,0.00016,2]
[419182849,1775010643940,-372.802333,0.00016,2]
[419182850,1775010643949,-700.068793,0.00016,2]
[419182851,1775010643959,-372.802333,0.00016,2]
[419182852,1775010643969,-700.068793,0.00016,2]
[419182853,1775010643979,-2106.990483,0.00016,2]
[419182854,1775010643988,-700.068793,0.00016,2]
[419182855,1775010643998,-2106.990483,0.00016,2]
[419182856,1775010644008,-1068.797159,0.00016,2]
[419182857,1775010644018,-700.068793,0.00016,2]
[419182858,1775010644027,-1068.797159,0.00016,2]
[419182859,1775010644036,-2106.990483,0.00016,2]
[419182860,1775010644045,-296.97395,0.00016,2]
[419182861,1775010644055,-2106.990483,0.00016,2]
[419182862,1775010644064,-1068.797159,0.00016,2]
[419182863,1775010644074,-1068.797159,0.00016,2]
[419182864,1775010644083,-151.0,0.00016,2]
[419182865,1775010644094,-151.0,0.00016,2]
[419182866,1775010644104,-255.663514,0.00016,2]
[419182867,1775010644113,-151.0,0.00016,2]
[419182868,1775010644123,-255.663514,0.00016,2]
[419182869,1775010644133,-255.663514,0.00016,2]
[419182870,1775010644143,-245.956086,0.00016,2]
[419182871,1775010644152,-255.663514,0.00016,2]
[419182872,1775010644162,-249.645465,0.00016,2]
[419182873,1775010644172,-245.956086,0.00016,2]
[419182874,1775010644181,-249.645465,0.00016,2]
[419182875,1775010644190,-151.0,0.00016,2]
[419182876,1775010644200,-249.645465,0.00016,2]
[419182877,1775010644211,-245.956086,0.00016,2]
[419182878,1775010644221,-249.645465,0.00016,2]
[419182879,1775010644231,-245.956086,0.00016,2]
[419182880,1775010644240,-151.0,0.00016,2]
[419182881,1775010644250,-151.0,0.00016,2]
[419182882,1775010644259,-151.0,0.00016,2]
[419182883,1775010644269,-263.046408,0.00016,2]
[419182884,1775010644278,-172.663958,0.00016,2]
[419182885,1775010644288,-151.0,0.00016,2]
[419182886,1775010644298,-151.0,0.00016,2]
[419182887,1775010644307,-263.046408,0.00016,2]
[419182888,1775010644316,-172.663958,0.00016,2]
[419182889,1775010644326,-287.333912,0.00016,2]
[419182890,1775010644336,-263.046408,0.00016,2]
[419182891,1775010644346,-172.663958,0.00016,2]
[419182892,1775010644357,-151.0,0.00016,2]
[419182893,1775010644367,-521.20969,0.00016,2]
[419182894,1775010644376,-263.046408,0.00016,2]
[419182895,1775010644386,-172.663958,0.00016,2]
[419182896,1775010644395,-151.0,0.00016,2]
[419182897,1775010644404,-521.20969,0.00016,2]
[419182898,1775010644414,-151.0,0.00016,2]
[419182899,1775010644424,-521.20969,0.00016,2]
[419182900,1775010644434,-151.0,0.00016,2]
[419182901,1775010644443,-865.724085,0.00016,2]
[419182902,1775010644453,-151.0,0.00016,2]
[419182903,1775010644463,-152.910508,0.00016,2]
[419182904,1775010644472,-160.486882,0.00016,2]
[419182905,1775010644481,-521.20969,0.00016,2]
[419182906,1775010644491,-865.724085,0.00016,2]
[419182907,1775010644500,-152.910508,0.00016,2]
[419182908,1775010644510,-865.724085,0.00016,2]
[419182909,1775010644520,-151.0,0.00016,2]
[419182910,1775010644529,-152.910508,0.00016,2]
[419182911,1775010644538,-865.724085,0.00016,2]
[419182912,1775010644548,-152.910508,0.00016,2]
[419182913,1775010644558,-151.0,0.00016,2]
[419182914,1775010644568,-151.279828,0.00016,2]
[419182915,1775010644578,-151.279828,0.00016,2]
[419182916,1775010644587,-151.279828,0.00016,2]
[419182917,1775010644596,-151.279828,0.00016,2]
[419182918,1775010644607,-178.585789,0.00016,2]
[419182919,1775010644617,-349.539048,0.00016,2]
[419182920,1775010644627,-178.585789,0.00016,2]
[419182921,1775010644638,-2900.360395,0.00016,2]
[419182922,1775010644647,-349.539048,0.00016,2]
[419182923,1775010644656,-178.585789,0.00016,2]
[419182924,1775010644666,-2900.360395,0.00016,2]
[419182925,1775010644675,-151.0,0.00016,2]
[419182926,1775010644684,-151.0,0.00016,2]
[419182927,1775010644693,-349.539048,0.00016,2]
[419182928,1775010644702,-178.585789,0.00016,2]
[419182929,1775010644712,-310.869876,0.00016,2]
[419182930,1775010644721,-2900.360395,0.00016,2]
[419182931,1775010644731,-151.0,0.00016,2]
[419182932,1775010644740,-151.0,0.00016,2]
[419182933,1775010644750,-349.539048,0.00016,2]
[419182934,1775010644759,-310.869876,0.00016,2]
[419182935,1775010644769,-2900.360395,0.00016,2]
[419182936,1775010644778,-151.0,0.00016,2]
[419182937,1775010644788,-173.356592,0.00016,2]
[419182938,1775010644798,-151.0,0.00016,2]
[419182939,1775010644807,-310.869876,0.00016,2]
[419182940,1775010644818,-265.286525,0.00016,2]
[419182941,1775010644829,-173.356592,0.00016,2]
[419182942,1775010644840,-151.0,0.00016,2]
[419182943,1775010644851,-310.869876,0.00016,2]
[419182944,1775010644861,-283.391457,0.00016,2]
[419182945,1775010644871,-173.356592,0.00016,2]
[419182946,1775010644880,-302.638113,0.00016,2]
[419182947,1775010644889,-173.235551,0.00016,2]
[419182948,1775010644898,-283.391457,0.00016,2]
[419182949,1775010644907,-173.356592,0.00016,2]
[419182950,1775010644916,-302.638113,0.00016,2]
[419182951,1775010644926,-151.0,0.00016,2]
[419182952,1775010644935,-173.235551,0.00016,2]
[419182953,1775010644944,-583.094244,0.00016,2]
[419182954,1775010644954,-1000.695283,0.00016,2]
[419182955,1775010644964,-283.391457,0.00016,2]
[419182956,1775010644974,-302.638113,0.00016,2]
[419182957,1775010644983,-173.235551,0.00016,2]
[419182958,1775010644992,-583.094244,0.00016,2]
[419182959,1775010645003,-1000.695283,0.00016,2]
[419182960,1775010645012,-283.391457,0.00016,2]
[419182961,1775010645026,-302.638113,0.00016,2]
[419182962,1775010645036,-583.094244,0.00016,2]
[419182963,1775010645045,-587.336107,0.00016,2]
[419182964,1775010645054,-1000.695283,0.00016,2]
[419182965,1775010645064,-173.235551,0.00016,2]
[419182966,1775010645072,-583.094244,0.00016,2]
[419182967,1775010645084,-587.336107,0.00016,2]
[419182968,1775010645093,-1000.695283,0.00016,2]
[419182969,1775010645103,-151.0,0.00016,2]
[419182970,1775010645112,-151.0,0.00016,2]
[419182971,1775010645121,-587.336107,0.00016,2]
[419182972,1775010645130,-587.336107,0.00016,2]
[419182973,1775010645139,-151.0,0.00016,2]
[419182974,1775010645148,-151.0,0.00016,2]
[419182975,1775010645158,-151.0,0.00016,2]
[419182976,1775010645168,-151.0,0.00016,2]
[419182977,1775010645415,-689.341716,0.00016,2]
[419182978,1775010645425,-201.137594,0.00016,2]
[419182979,1775010645435,-319.999827,0.00016,2]
[419182980,1775010645444,-689.341716,0.00016,2]
[419182981,1775010645453,-201.137594,0.00016,2]
[419182982,1775010645462,-319.999827,0.00016,2]
[419182983,1775010645471,-689.341716,0.00016,2]
[419182984,1775010645481,-201.137594,0.00016,2]
[419182985,1775010645490,-319.999827,0.00016,2]
[419182986,1775010645500,-689.341716,0.00016,2]
[419182987,1775010645510,-3276.685982,0.00016,2]
[419182988,1775010645520,-201.137594,0.00016,2]
[419182989,1775010645530,-319.999827,0.00016,2]
[419182990,1775010645539,-266.850709,0.00016,2]
[419182991,1775010645549,-3276.685982,0.00016,2]
[419182992,1775010645558,-266.850709,0.00016,2]
[419182993,1775010645568,-3276.685982,0.00016,2]
[419182994,1775010645578,-492.031885,0.00016,2]
[419182995,1775010645587,-266.850709,0.00016,2]
[419182996,1775010645596,-3276.685982,0.00016,2]
[419182997,1775010645605,-492.031885,0.00016,2]
[419182998,1775010645614,-266.850709,0.00016,2]
[419182999,1775010645624,-492.031885,0.00016,2]
[419183000,1775010645633,-151.0,0.00016,2]
[419183001,1775010645642,-492.031885,0.00016,2]
[419183002,1775010645651,-390.14726,0.00016,2]
[419183003,1775010645660,-151.0,0.00016,2]
[419183004,1775010645669,-390.14726,0.00016,2]
[419183005,1775010645679,-151.0,0.00016,2]
[419183006,1775010645688,-390.14726,0.00016,2]
[419183007,1775010645698,-163.100948,0.00016,2]
[419183008,1775010645707,-390.14726,0.00016,2]
[419183009,1775010645716,-644.599907,0.00016,2]
[419183010,1775010645726,-151.0,0.00016,2]
[419183011,1775010645735,-151.0,0.00016,2]
[419183012,1775010645746,-1736.096161,0.00016,2]
[419183013,1775010645755,-644.599907,0.00016,2]
[419183014,1775010645764,-151.0,0.00016,2]
[419183015,1775010645774,-151.0,0.00016,2]
[419183016,1775010645783,-1736.096161,0.00016,2]
[419183017,1775010645793,-644.599907,0.00016,2]
[419183018,1775010645804,-1736.096161,0.00016,2]
[419183019,1775010645814,-644.599907,0.00016,2]
[419183020,1775010645823,-151.0,0.00016,2]
[419183021,1775010645832,-283.450563,0.00016,2]
[419183022,1775010645841,-256.203795,0.00016,2]
[419183023,1775010645851,-1736.096161,0.00016,2]
[419183024,1775010645860,-283.450563,0.00016,2]
[419183025,1775010645869,-256.203795,0.00016,2]
[419183026,1775010645879,-252.213811,0.00016,2]
[419183027,1775010645888,-1888.020243,0.00016,2]
[419183028,1775010645897,-283.450563,0.00016,2]
[419183029,1775010645906,-256.203795,0.00016,2]
[419183030,1775010645916,-252.213811,0.00016,2]
[419183031,1775010645925,-244.3815,0.00016,2]
[419183032,1775010645935,-1888.020243,0.00016,2]
[419183033,1775010645944,-283.450563,0.00016,2]
[419183034,1775010645953,-152.754954,0.00016,2]
[419183035,1775010645962,-256.203795,0.00016,2]
[419183036,1775010645971,-252.213811,0.00016,2]
[419183037,1775010645980,-1888.020243,0.00016,2]
[419183038,1775010645989,-152.754954,0.00016,2]
[419183039,1775010645998,-252.213811,0.00016,2]
[419183040,1775010646009,-1888.020243,0.00016,2]
[419183041,1775010646018,-152.754954,0.00016,2]
[419183042,1775010646028,-152.754954,0.00016,2]
[419183043,1775010646037,-244.3815,0.00016,2]
[419183044,1775010646047,-244.3815,0.00016,2]
[419183045,1775010646056,-151.0,0.00016,2]
[419183046,1775010646065,-244.3815,0.00016,2]
[419183047,1775010646075,-609.890694,0.00016,2]
[419183048,1775010646085,-609.890694,0.00016,2]
[419183049,1775010646094,-609.890694,0.00016,2]
[419183050,1775010646104,-269.689,0.00016,2]
[419183051,1775010646113,-609.890694,0.00016,2]
[419183052,1775010646122,-269.689,0.00016,2]
[419183053,1775010646131,-151.0,0.00016,2]
[419183054,1775010646140,-434.923258,0.00016,2]
[419183055,1775010646150,-151.0,0.00016,2]
[419183056,1775010646160,-269.689,0.00016,2]
[419183057,1775010646169,-434.923258,0.00016,2]
[419183058,1775010646178,-151.0,0.00016,2]
[419183059,1775010646187,-984.6392,0.00016,2]
[419183060,1775010646197,-151.0,0.00016,2]
[419183061,1775010646206,-483.27777,0.00016,2]
[419183062,1775010646215,-151.0,0.00016,2]
[419183063,1775010646225,-269.689,0.00016,2]
[419183064,1775010646234,-151.0,0.00016,2]
[419183065,1775010646243,-434.923258,0.00016,2]
[419183066,1775010646254,-151.0,0.00016,2]
[419183067,1775010646264,-984.6392,0.00016,2]
[419183068,1775010646273,-483.27777,0.00016,2]
[419183069,1775010646283,-153.242848,0.00016,2]
[419183070,1775010646292,-151.0,0.00016,2]
[419183071,1775010646302,-457.498785,0.00016,2]
[419183072,1775010646311,-151.0,0.00016,2]
[419183073,1775010646320,-434.923258,0.00016,2]
[419183074,1775010646330,-984.6392,0.00016,2]
[419183075,1775010646339,-151.0,0.00016,2]
[419183076,1775010646348,-153.242848,0.00016,2]
[419183077,1775010646358,-483.27777,0.00016,2]
[419183078,1775010646367,-151.0,0.00016,2]
[419183079,1775010646376,-151.0,0.00016,2]
[419183080,1775010646385,-457.498785,0.00016,2]
[419183081,1775010646394,-151.0,0.00016,2]
[419183082,1775010646404,-984.6392,0.00016,2]
[419183083,1775010646413,-151.0,0.00016,2]
[419183084,1775010646422,-483.27777,0.00016,2]
[419183085,1775010646432,-153.242848,0.00016,2]
[419183086,1775010646441,-457.498785,0.00016,2]
[419183087,1775010646451,-151.0,0.00016,2]
[419183088,1775010646460,-457.498785,0.00016,2]
[419183089,1775010646470,-151.0,0.00016,2]
[419183090,1775010646479,-153.242848,0.00016,2]
[419183091,1775010646489,-420.0,0.00016,2]
[419183092,1775010646499,-420.0,0.00016,2]
[419183093,1775010646508,-151.0,0.00016,2]
[419183094,1775010646517,-151.0,0.00016,2]
[419183095,1775010646527,-151.0,0.00016,2]
[419183096,1775010646537,-420.0,0.00016,2]
[419183097,1775010646546,-151.0,0.00016,2]
[419183098,1775010646555,-151.0,0.00016,2]
[419183099,1775010646565,-1663.408312,0.00016,2]
[419183100,1775010646575,-420.0,0.00016,2]
[419183101,1775010646585,-592.636849,0.00016,2]
[419183102,1775010646594,-151.0,0.00016,2]
[419183103,1775010646603,-1663.408312,0.00016,2]
[419183104,1775010646612,-592.636849,0.00016,2]
[419183105,1775010646621,-151.0,0.00016,2]
[419183106,1775010646631,-1663.408312,0.00016,2]
[419183107,1775010646640,-592.636849,0.00016,2]
[419183108,1775010646650,-151.0,0.00016,2]
[419183109,1775010646660,-1663.408312,0.00016,2]
[419183110,1775010646669,-151.0,0.00016,2]
[419183111,1775010646679,-592.636849,0.00016,2]
[419183112,1775010646688,-151.0,0.00016,2]
[419183113,1775010646697,-151.0,0.00016,2]
[419183114,1775010646707,-151.0,0.00016,2]
[419183115,1775010646717,-180.382678,0.00016,2]
[419183116,1775010646727,-200.0,0.00016,2]
[419183117,1775010646736,-320.700605,0.00016,2]
[419183118,1775010646746,-151.0,0.00016,2]
[419183119,1775010646756,-320.700605,0.00016,2]
[419183120,1775010646766,-320.700605,0.00016,2]
[419183121,1775010646775,-315.586112,0.00016,2]
[419183122,1775010646784,-151.0,0.00016,2]
[419183123,1775010646794,-776.330977,0.00016,2]
[419183124,1775010646803,-315.586112,0.00016,2]
[419183125,1775010646812,-320.700605,0.00016,2]
[419183126,1775010646822,-151.0,0.00016,2]
[419183127,1775010646831,-151.0,0.00016,2]
[419183128,1775010646841,-776.330977,0.00016,2]
[419183129,1775010646850,-315.586112,0.00016,2]
[419183130,1775010646859,-151.0,0.00016,2]
[419183131,1775010646869,-315.586112,0.00016,2]
[419183132,1775010646879,-151.0,0.00016,2]
[419183133,1775010646889,-151.0,0.00016,2]
[419183134,1775010646899,-151.0,0.00016,2]
[419183135,1775010646908,-151.0,0.00016,2]
[419183136,1775010646918,-776.330977,0.00016,2]
[419183137,1775010646928,-985.594617,0.00016,2]
[419183138,1775010646939,-253.666059,0.00016,2]
[419183139,1775010646948,-151.0,0.00016,2]
[419183140,1775010646958,-204.743484,0.00016,2]
[419183141,1775010646968,-985.594617,0.00016,2]
[419183142,1775010646979,-776.330977,0.00016,2]
[419183143,1775010646989,-1057.162612,0.00016,2]
[419183144,1775010646998,-253.666059,0.00016,2]
[419183145,1775010647008,-583.935786,0.00016,2]
[419183146,1775010647018,-204.743484,0.00016,2]
[419183147,1775010647027,-985.594617,0.00016,2]
[419183148,1775010647037,-210.578924,0.00016,2]
[419183149,1775010647046,-253.666059,0.00016,2]
[419183150,1775010647055,-583.935786,0.00016,2]
[419183151,1775010647064,-204.743484,0.00016,2]
[419183152,1775010647074,-210.578924,0.00016,2]
[419183153,1775010647083,-985.594617,0.00016,2]
[419183154,1775010647092,-1445.817213,0.00016,2]
[419183155,1775010647102,-253.666059,0.00016,2]
[419183156,1775010647111,-583.935786,0.00016,2]
[419183157,1775010647120,-1057.162612,0.00016,2]
[419183158,1775010647129,-204.743484,0.00016,2]
[419183159,1775010647138,-210.578924,0.00016,2]
[419183160,1775010647148,-439.763631,0.00016,2]
[419183161,1775010647157,-1445.817213,0.00016,2]
[419183162,1775010647166,-292.439697,0.00016,2]
[419183163,1775010647175,-583.935786,0.00016,2]
[419183164,1775010647185,-1057.162612,0.00016,2]
[419183165,1775010647194,-210.578924,0.00016,2]
[419183166,1775010647203,-1445.817213,0.00016,2]
[419183167,1775010647213,-439.763631,0.00016,2]
[419183168,1775010647222,-292.439697,0.00016,2]
[419183169,1775010647231,-1057.162612,0.00016,2]
[419183170,1775010647240,-1445.817213,0.00016,2]
[419183171,1775010647249,-292.439697,0.00016,2]
[419183172,1775010647258,-151.0,0.00016,2]
[419183173,1775010647267,-205.686774,0.00016,2]
[419183174,1775010647276,-292.439697,0.00016,2]
[419183175,1775010647285,-1207.311356,0.00016,2]
[419183176,1775010647294,-205.686774,0.00016,2]
[419183177,1775010647303,-439.763631,0.00016,2]
[419183178,1775010647313,-1207.311356,0.00016,2]
[419183179,1775010647322,-151.234938,0.00016,2]
[419183180,1775010647331,-205.686774,0.00016,2]
[419183181,1775010647340,-603.555246,0.00016,2]
[419183182,1775010647349,-439.763631,0.00016,2]
[419183183,1775010647358,-1207.311356,0.00016,2]
[419183184,1775010647367,-151.0,0.00016,2]
[419183185,1775010647376,-205.686774,0.00016,2]
[419183186,1775010647386,-235.924091,0.00016,2]
[419183187,1775010647395,-603.555246,0.00016,2]